[Event "Championnat du monde jeunes U12F"]
[Date "2024.11.25"]
[White "Chen, Pin-I"]
[Black "Tsinjoviniavo, Aina Mahasambatra"]
[WhiteElo "1601"]
[BlackElo "1716"]
[Round "10.34"]
[Result "0-1"]
[TimeControl "5400+30"]

1. d4 {[%clk 1:30:58]} 1... d5 {[%clk 1:30:35]} 2. c4 {[%clk 1:31:21]} 2... e6
{[%clk 1:31:01]} 3. Nf3 {[%clk 1:31:45]} 3... Nf6 {[%clk 1:31:21]} 4. g3 {[%clk
1:32:09]} 4... c6 {[%clk 1:31:13]} 5. Bg2 {[%clk 1:32:29]} 5... dxc4 {[%clk
1:31:18]} 6. O-O {[%clk 1:31:14]} 6... Nbd7 {[%clk 1:30:40]} 7. a4 {[%clk
1:28:30]} 7... a5 {[%clk 1:29:06]} 8. Qc2 {[%clk 1:28:03]} 8... Bd6 {[%clk
1:15:57]} 9. Qxc4 {[%clk 1:26:22]} 9... O-O {[%clk 1:14:57]} 10. Nc3 {[%clk
1:22:03]} 10... e5 {[%clk 1:12:48]} 11. e4 {[%clk 1:07:11]} 11... Nb6 {[%clk
0:58:04]} 12. Qd3 {[%clk 1:01:22]} 12... Bc5 {[%clk 0:52:51]} 13. Be3 {[%clk
0:39:15]} 13... Bxd4 {[%clk 0:50:51]} 14. Bxd4 {[%clk 0:36:17]} 14... exd4
{[%clk 0:42:00]} 15. Qxd4 {[%clk 0:35:30]} 15... Be6 {[%clk 0:37:02]} 16. Qc5
{[%clk 0:29:43]} 16... Nfd7 {[%clk 0:34:34]} 17. Qh5 {[%clk 0:26:55]} 17... Nf6
{[%clk 0:31:26]} 18. Qg5 {[%clk 0:23:34]} 18... h6 {[%clk 0:31:30]} 19. Qc1
{[%clk 0:16:36]} 19... Qe7 {[%clk 0:27:13]} 20. Nd4 {[%clk 0:14:22]} 20... Bc4
{[%clk 0:23:14]} 21. Rd1 {[%clk 0:13:18]} 21... Rad8 {[%clk 0:17:00]} 22. b3
{[%clk 0:11:28]} 22... Be6 {[%clk 0:12:32]} 23. Nxe6 {[%clk 0:10:15]} 23... Qxe6
{[%clk 0:12:53]} 24. Qc2 {[%clk 0:10:05]} 24... Nbd7 {[%clk 0:11:37]} 25. Ne2
{[%clk 0:09:23]} 25... Qe5 {[%clk 0:10:28]} 26. Rac1 {[%clk 0:09:17]} 26... Rfe8
{[%clk 0:06:46]} 27. f3 {[%clk 0:07:28]} 27... Nb8 {[%clk 0:05:31]} 28. Nf4
{[%clk 0:06:04]} 28... Na6 {[%clk 0:05:21]} 29. Nd3 {[%clk 0:06:19]} 29... Qd4+
{[%clk 0:03:58]} 30. Kh1 {[%clk 0:06:07]} 30... Nb4 {[%clk 0:03:20]} 31. Nxb4
{[%clk 0:06:19]} 31... Qxb4 {[%clk 0:03:46]} 32. Bf1 {[%clk 0:06:04]} 32... Nd7
{[%clk 0:03:43]} 33. Bc4 {[%clk 0:05:42]} 33... Ne5 {[%clk 0:04:01]} 34. Be2
{[%clk 0:05:58]} 34... g6 {[%clk 0:02:39]} 35. f4 {[%clk 0:04:19]} 35... Nd7
{[%clk 0:02:52]} 36. e5 {[%clk 0:04:40]} 36... Nb6 {[%clk 0:02:56]} 37. Bf3
{[%clk 0:03:47]} 37... Kg7 {[%clk 0:01:28]} 38. Qb2 {[%clk 0:03:32]} 38... Nxa4
{[%clk 0:01:43]} 39. Qc2 {[%clk 0:03:09]} 39... Nb6 {[%clk 0:02:04]} 40. Qb2
{[%clk 0:02:52]} 40... Kg8 {[%clk 0:01:52]} 41. Qa2 {[%clk 0:02:29]} 41... Nd5
{[%clk 0:01:14]} 42. Bxd5 {[%clk 0:02:40]} 42... Rxd5 {[%clk 0:01:35]} 43. Rxd5
{[%clk 0:03:02]} 43... cxd5 {[%clk 0:01:22]} 44. Rd1 {[%clk 0:03:15]} 44... Rd8
{[%clk 0:01:42]} 45. Qc2 {[%clk 0:02:49]} 45... Qb6 {[%clk 0:01:30]} 46. Rd3
{[%clk 0:02:23]} 46... d4 {[%clk 0:01:08]} 47. Qc4 {[%clk 0:02:39]} 47... Qc6+
{[%clk 0:01:28]} 48. Qxc6 {[%clk 0:02:57]} 48... bxc6 {[%clk 0:01:54]} 49. Kg2
{[%clk 0:03:21]} 49... c5 {[%clk 0:02:14]} 50. Kf3 {[%clk 0:03:46]} 50... a4
{[%clk 0:01:49]} 51. bxa4 {[%clk 0:04:10]} 51... c4 {[%clk 0:02:15]} 52. Rd1
{[%clk 0:04:35]} 52... c3 {[%clk 0:02:26]} 53. Ke2 {[%clk 0:04:42]} 53... Kf8
{[%clk 0:02:33]} 54. Kd3 {[%clk 0:05:05]} 54... Ke7 {[%clk 0:02:57]} 55. a5
{[%clk 0:05:25]} 55... Ke6 {[%clk 0:03:08]} 56. a6 {[%clk 0:05:33]} 56... Kd5
{[%clk 0:02:24]} 57. a7 {[%clk 0:05:54]} 57... Ra8 {[%clk 0:02:36]} 58. Ra1
{[%clk 0:06:12]} 58... g5 {[%clk 0:02:25]} 59. Ra5+ {[%clk 0:06:16]} 59... Ke6
{[%clk 0:01:53]} 60. Kxd4 {[%clk 0:06:08]} 60... c2 {[%clk 0:02:07]} 61. Ra1
{[%clk 0:06:02]} 61... Rxa7 {[%clk 0:02:24]} 62. Rc1 {[%clk 0:05:39]} 62... Rc7
{[%clk 0:02:47]} 63. Kd3 {[%clk 0:06:01]} 63... gxf4 {[%clk 0:03:04]} 64. gxf4
{[%clk 0:06:23]} 64... Kf5 {[%clk 0:03:29]} 65. Ke3 {[%clk 0:06:34]} 65... Kg4
{[%clk 0:03:42]} 66. Kd2 {[%clk 0:04:04]} 66... Kxf4 {[%clk 0:03:36]} 67. Rxc2
{[%clk 0:03:10]} 67... Rxc2+ {[%clk 0:03:58]} 68. Kxc2 {[%clk 0:03:38]} 68...
Kxe5 {[%clk 0:04:21]} 69. Kd3 {[%clk 0:03:59]} 69... Kf4 {[%clk 0:04:28]} 70.
Ke2 {[%clk 0:04:23]} 70... f6 {[%clk 0:04:25]} 71. Kf2 {[%clk 0:04:37]} 71... h5
{[%clk 0:04:43]} 72. Kg2 {[%clk 0:04:59]} 72... Ke3 {[%clk 0:05:03]} 73. Kf1
{[%clk 0:05:22]} 73... f5 {[%clk 0:05:10]} 74. Ke1 {[%clk 0:05:41]} 74... h4
{[%clk 0:05:13]} 75. Kf1 {[%clk 0:05:48]} 75... Kf3 {[%clk 0:05:24]} 76. Kg1
{[%clk 0:05:01]} 76... Ke2 {[%clk 0:05:42]} 0-1

[Variant "Standard"]
[Site "Europe Echecs"]

[Event "Championnat du monde jeunes U12F"]
[Date "2024.11.25"]
[White "Hiznicenco, Valeria"]
[Black "Radenkovic, Lena"]
[WhiteElo "1513"]
[BlackElo "1675"]
[Round "10.35"]
[Result "1/2-1/2"]
[TimeControl "5400+30"]

1. e4 {[%clk 1:30:57]} 1... e5 {[%clk 1:30:34]} 2. Nf3 {[%clk 1:31:14]} 2... Nc6
{[%clk 1:29:57]} 3. d4 {[%clk 1:31:10]} 3... exd4 {[%clk 1:26:12]} 4. Bc4 {[%clk
1:31:12]} 4... h6 {[%clk 1:20:49]} 5. Nxd4 {[%clk 1:28:22]} 5... Qf6 {[%clk
1:17:39]} 6. c3 {[%clk 1:17:40]} 6... Bc5 {[%clk 1:13:02]} 7. Be3 {[%clk
1:12:55]} 7... Nge7 {[%clk 1:10:03]} 8. O-O {[%clk 1:11:03]} 8... O-O {[%clk
1:03:38]} 9. Qd3 {[%clk 0:55:09]} 9... d6 {[%clk 0:56:46]} 10. Bb3 {[%clk
0:41:04]} 10... Ne5 {[%clk 0:52:25]} 11. Qe2 {[%clk 0:32:32]} 11... N7g6 {[%clk
0:33:40]} 12. f3 {[%clk 0:26:38]} 12... Nf4 {[%clk 0:30:06]} 13. Bxf4 {[%clk
0:19:25]} 13... Qxf4 {[%clk 0:30:15]} 14. Kh1 {[%clk 0:19:04]} 14... Kh8 {[%clk
0:19:36]} 15. g3 {[%clk 0:15:23]} 15... Qf6 {[%clk 0:19:23]} 16. Nd2 {[%clk
0:13:29]} 16... Qg6 {[%clk 0:17:19]} 17. Qg2 {[%clk 0:08:59]} 17... h5 {[%clk
0:14:24]} 18. Rg1 {[%clk 0:07:45]} 18... f5 {[%clk 0:12:15]} 19. Bc2 {[%clk
0:06:37]} 19... Bxd4 {[%clk 0:10:49]} 20. cxd4 {[%clk 0:06:45]} 20... Nc6 {[%clk
0:11:02]} 21. d5 {[%clk 0:04:36]} 21... Ne5 {[%clk 0:10:44]} 22. h3 {[%clk
0:04:25]} 22... Qh6 {[%clk 0:08:06]} 23. Raf1 {[%clk 0:03:36]} 23... Bd7 {[%clk
0:07:38]} 24. exf5 {[%clk 0:03:27]} 24... Bxf5 {[%clk 0:07:44]} 25. Bxf5 {[%clk
0:03:50]} 25... Rxf5 {[%clk 0:08:06]} 26. g4 {[%clk 0:03:31]} 26... hxg4 {[%clk
0:08:06]} 27. fxg4 {[%clk 0:03:54]} 27... Rff8 {[%clk 0:07:23]} 28. Ne4 {[%clk
0:03:34]} 28... Qg6 {[%clk 0:05:46]} 29. Nc3 {[%clk 0:03:09]} 29... Nc4 {[%clk
0:05:26]} 30. b3 {[%clk 0:02:46]} 30... Ne3 {[%clk 0:05:17]} 31. Rxf8+ {[%clk
0:03:05]} 31... Rxf8 {[%clk 0:05:42]} 32. Qe2 {[%clk 0:03:06]} 32... Re8 {[%clk
0:05:34]} 33. Re1 {[%clk 0:03:02]} 33... Qf6 {[%clk 0:04:24]} 34. Nd1 {[%clk
0:03:06]} 34... Qd4 {[%clk 0:02:46]} 35. Nxe3 {[%clk 0:03:19]} 35... Qe4+ {[%clk
0:03:01]} 36. Qg2 {[%clk 0:03:20]} 36... Qb4 {[%clk 0:03:04]} 37. Qf2 {[%clk
0:03:30]} 37... Kg8 {[%clk 0:02:32]} 38. Ng2 {[%clk 0:03:23]} 38... Rf8 {[%clk
0:02:43]} 39. Qe2 {[%clk 0:03:15]} 39... Qc3 {[%clk 0:02:18]} 40. Qe6+ {[%clk
0:03:16]} 40... Kh8 {[%clk 0:02:33]} 41. Qe7 {[%clk 0:03:21]} 41... Qxh3+ {[%clk
0:02:42]} 42. Kg1 {[%clk 0:03:28]} 42... Qf3 {[%clk 0:02:30]} 43. Qe2 {[%clk
0:02:53]} 43... Qg3 {[%clk 0:02:10]} 44. Qe7 {[%clk 0:02:00]} 44... Qf3 {[%clk
0:02:14]} 45. Qe2 {[%clk 0:01:52]} 45... Qf6 {[%clk 0:02:29]} 46. Rf1 {[%clk
0:02:04]} 46... Qd4+ {[%clk 0:02:37]} 47. Kh1 {[%clk 0:02:11]} 47... Rf6 {[%clk
0:02:40]} 48. Rxf6 {[%clk 0:02:12]} 48... Qxf6 {[%clk 0:02:58]} 49. Qe8+ {[%clk
0:02:21]} 49... Kh7 {[%clk 0:03:18]} 50. Qh5+ {[%clk 0:01:40]} 50... Kg8 {[%clk
0:03:40]} 51. Qe8+ {[%clk 0:01:35]} 51... Kh7 {[%clk 0:04:05]} 52. Qh5+ {[%clk
0:01:36]} 52... Kg8 {[%clk 0:04:30]} 53. Qe8+ {[%clk 0:01:56]} 1/2-1/2

[Variant "Standard"]
[Site "Europe Echecs"]

[Event "Championnat du monde jeunes U12F"]
[Date "2024.11.25"]
[White "Muradova, Nebahat"]
[Black "Petrusic, Dusica"]
[WhiteElo "1626"]
[BlackElo "1498"]
[Round "10.36"]
[Result "1-0"]
[TimeControl "5400+30"]

1. d4 {[%clk 1:30:59]} 1... d5 {[%clk 1:30:54]} 2. c4 {[%clk 1:31:21]} 2... c6
{[%clk 1:31:18]} 3. cxd5 {[%clk 1:31:42]} 3... cxd5 {[%clk 1:31:39]} 4. Nc3
{[%clk 1:32:08]} 4... Nc6 {[%clk 1:31:24]} 5. Bf4 {[%clk 1:32:30]} 5... a6
{[%clk 1:30:38]} 6. e3 {[%clk 1:32:54]} 6... Nf6 {[%clk 1:29:57]} 7. Bd3 {[%clk
1:32:47]} 7... e6 {[%clk 1:30:07]} 8. Nf3 {[%clk 1:33:00]} 8... Bd6 {[%clk
1:28:31]} 9. Bg5 {[%clk 1:33:08]} 9... h6 {[%clk 1:28:27]} 10. Bh4 {[%clk
1:33:25]} 10... Be7 {[%clk 1:27:11]} 11. O-O {[%clk 1:32:23]} 11... O-O {[%clk
1:27:08]} 12. Rc1 {[%clk 1:32:37]} 12... Bd7 {[%clk 1:24:48]} 13. Bb1 {[%clk
1:30:51]} 13... Ne8 {[%clk 1:17:08]} 14. Qc2 {[%clk 1:28:02]} 14... g6 {[%clk
1:16:38]} 15. Bg3 {[%clk 1:27:48]} 15... f5 {[%clk 1:05:11]} 16. Ne5 {[%clk
1:25:23]} 16... Nxe5 {[%clk 1:04:10]} 17. Bxe5 {[%clk 1:25:42]} 17... Bd6 {[%clk
1:02:17]} 18. f4 {[%clk 1:20:50]} 18... Rc8 {[%clk 0:57:18]} 19. Rf3 {[%clk
1:17:13]} 19... Bxe5 {[%clk 0:56:16]} 20. fxe5 {[%clk 1:17:18]} 20... b5 {[%clk
0:50:50]} 21. a3 {[%clk 1:13:49]} 21... a5 {[%clk 0:46:45]} 22. Qe2 {[%clk
1:09:39]} 22... b4 {[%clk 0:44:41]} 23. axb4 {[%clk 1:09:38]} 23... axb4 {[%clk
0:44:54]} 24. Na2 {[%clk 1:10:01]} 24... Rxc1+ {[%clk 0:44:19]} 25. Nxc1 {[%clk
1:10:29]} 25... Qb6 {[%clk 0:39:58]} 26. h4 {[%clk 1:08:13]} 26... Nc7 {[%clk
0:36:31]} 27. g4 {[%clk 1:02:29]} 27... Kh7 {[%clk 0:32:53]} 28. gxf5 {[%clk
1:01:02]} 28... gxf5 {[%clk 0:33:03]} 29. Rg3 {[%clk 1:01:19]} 29... Rg8 {[%clk
0:30:49]} 30. Rxg8 {[%clk 1:01:12]} 30... Kxg8 {[%clk 0:31:08]} 31. Qg2+ {[%clk
1:01:22]} 31... Kh7 {[%clk 0:31:11]} 32. Nd3 {[%clk 1:00:47]} 32... Be8 {[%clk
0:29:56]} 33. Nf4 {[%clk 0:59:44]} 33... Qc6 {[%clk 0:28:32]} 34. Kh2 {[%clk
0:59:35]} 34... Qc1 {[%clk 0:27:21]} 35. Nxe6 {[%clk 0:58:57]} 35... Nxe6 {[%clk
0:26:07]} 36. Bxf5+ {[%clk 0:59:01]} 36... Kh8 {[%clk 0:26:12]} 37. Bxe6 {[%clk
0:59:25]} 1-0

[Variant "Standard"]
[Site "Europe Echecs"]

[Event "Championnat du monde jeunes U12F"]
[Date "2024.11.25"]
[White "Anu, Bayart-Uchral"]
[Black "Yang, Hayeon"]
[WhiteElo "1624"]
[BlackElo "1482"]
[Round "10.37"]
[Result "1-0"]
[TimeControl "5400+30"]

1. d4 {[%clk 1:30:56]} 1... d5 {[%clk 1:30:35]} 2. c4 {[%clk 1:31:11]} 2... c6
{[%clk 1:30:05]} 3. Nc3 {[%clk 1:31:28]} 3... Nf6 {[%clk 1:30:17]} 4. e3 {[%clk
1:31:44]} 4... e6 {[%clk 1:29:47]} 5. Nf3 {[%clk 1:31:54]} 5... Nbd7 {[%clk
1:29:49]} 6. Bd3 {[%clk 1:31:54]} 6... Bd6 {[%clk 1:29:19]} 7. O-O {[%clk
1:31:53]} 7... b6 {[%clk 1:29:02]} 8. e4 {[%clk 1:30:46]} 8... dxe4 {[%clk
1:27:46]} 9. Nxe4 {[%clk 1:30:57]} 9... Nxe4 {[%clk 1:26:04]} 10. Bxe4 {[%clk
1:31:20]} 10... Bb7 {[%clk 1:26:10]} 11. b3 {[%clk 1:24:09]} 11... O-O {[%clk
1:25:28]} 12. Bb2 {[%clk 1:21:09]} 12... Nf6 {[%clk 1:24:13]} 13. Bc2 {[%clk
1:20:10]} 13... c5 {[%clk 1:22:35]} 14. Re1 {[%clk 1:09:25]} 14... cxd4 {[%clk
1:22:24]} 15. Nxd4 {[%clk 1:09:19]} 15... Bc5 {[%clk 1:20:49]} 16. a3 {[%clk
0:50:40]} 16... Qc7 {[%clk 1:14:23]} 17. Qe2 {[%clk 0:45:54]} 17... Rad8 {[%clk
1:10:43]} 18. Rad1 {[%clk 0:45:51]} 18... Bd6 {[%clk 1:09:39]} 19. h3 {[%clk
0:43:20]} 19... e5 {[%clk 1:08:30]} 20. Nf5 {[%clk 0:41:49]} 20... Rfe8 {[%clk
1:06:35]} 21. Nxd6 {[%clk 0:39:11]} 21... Rxd6 {[%clk 1:06:39]} 22. Rxd6 {[%clk
0:38:28]} 22... Qxd6 {[%clk 1:06:42]} 23. Bxe5 {[%clk 0:30:02]} 23... Qc6 {[%clk
1:05:51]} 24. Qf1 {[%clk 0:30:21]} 24... Qe6 {[%clk 1:01:42]} 25. Bc3 {[%clk
0:30:23]} 25... Qc6 {[%clk 1:00:47]} 26. Rxe8+ {[%clk 0:30:16]} 26... Nxe8
{[%clk 1:00:27]} 27. f3 {[%clk 0:28:50]} 27... Qc5+ {[%clk 0:59:50]} 28. Qf2
{[%clk 0:29:13]} 28... Qxa3 {[%clk 0:59:13]} 29. Qe1 {[%clk 0:29:07]} 29... Qc5+
{[%clk 0:54:30]} 30. Kh1 {[%clk 0:29:22]} 30... Nc7 {[%clk 0:50:12]} 31. Qg3
{[%clk 0:28:49]} 31... Ne6 {[%clk 0:47:59]} 32. Qb8+ {[%clk 0:24:06]} 32... Qc8
{[%clk 0:46:37]} 33. Qxa7 {[%clk 0:21:50]} 33... Qc7 {[%clk 0:46:11]} 34. Qa1
{[%clk 0:12:48]} 34... Ng5 {[%clk 0:43:23]} 35. Qe1 {[%clk 0:11:01]} 35... Bc6
{[%clk 0:39:45]} 36. Qe5 {[%clk 0:07:26]} 36... Qxe5 {[%clk 0:39:31]} 37. Bxe5
{[%clk 0:07:54]} 37... f6 {[%clk 0:39:19]} 38. Bd6 {[%clk 0:07:38]} 38... h6
{[%clk 0:38:57]} 39. b4 {[%clk 0:05:58]} 39... b5 {[%clk 0:38:27]} 40. Bd3
{[%clk 0:06:04]} 40... bxc4 {[%clk 0:37:33]} 41. Bxc4+ {[%clk 0:06:31]} 41...
Nf7 {[%clk 0:37:44]} 42. Be7 {[%clk 0:06:25]} 42... f5 {[%clk 0:37:02]} 43. f4
{[%clk 0:02:27]} 43... g6 {[%clk 0:35:54]} 44. Ba6 {[%clk 0:02:39]} 44... g5
{[%clk 0:35:08]} 45. b5 {[%clk 0:02:53]} 45... Bd5 {[%clk 0:34:57]} 46. b6
{[%clk 0:01:49]} 46... gxf4 {[%clk 0:34:52]} 47. b7 {[%clk 0:02:13]} 47... Bxb7
{[%clk 0:35:18]} 48. Bxb7 {[%clk 0:02:38]} 48... Kg7 {[%clk 0:35:25]} 49. Bd5
{[%clk 0:01:59]} 49... h5 {[%clk 0:35:17]} 50. Bxf7 {[%clk 0:02:13]} 50... Kxf7
{[%clk 0:35:38]} 51. Bg5 {[%clk 0:02:36]} 51... Kg6 {[%clk 0:35:14]} 52. Bxf4
{[%clk 0:03:01]} 52... h4 {[%clk 0:34:50]} 53. Kg1 {[%clk 0:03:21]} 53... Kh5
{[%clk 0:34:20]} 54. Kf2 {[%clk 0:03:45]} 54... Kg6 {[%clk 0:34:26]} 55. Kf3
{[%clk 0:04:03]} 55... Kh5 {[%clk 0:34:07]} 56. Bd6 {[%clk 0:04:19]} 56... Kg6
{[%clk 0:33:51]} 57. Kf4 {[%clk 0:04:44]} 57... Kf6 {[%clk 0:33:48]} 58. Be5+
{[%clk 0:05:06]} 58... Ke6 {[%clk 0:33:40]} 59. Bb2 {[%clk 0:05:32]} 59... Kd5
1-0

[Variant "Standard"]
[Site "Europe Echecs"]

[Event "Championnat du monde jeunes U12F"]
[Date "2024.11.25"]
[White "Mrad, Anahid"]
[Black "Stepankova, Linda"]
[WhiteElo "1558"]
[BlackElo "1624"]
[Round "10.38"]
[Result "1/2-1/2"]
[TimeControl "5400+30"]

1. e4 {[%clk 1:30:56]} 1... c5 {[%clk 1:30:57]} 2. Nf3 {[%clk 1:31:18]} 2... Nc6
{[%clk 1:31:10]} 3. d4 {[%clk 1:31:39]} 3... cxd4 {[%clk 1:31:37]} 4. Nxd4
{[%clk 1:32:03]} 4... g6 {[%clk 1:32:01]} 5. c4 {[%clk 1:32:10]} 5... Bg7 {[%clk
1:31:39]} 6. Be3 {[%clk 1:31:01]} 6... Nf6 {[%clk 1:28:16]} 7. Nc3 {[%clk
1:31:01]} 7... O-O {[%clk 1:26:33]} 8. Be2 {[%clk 1:28:40]} 8... d6 {[%clk
1:20:55]} 9. O-O {[%clk 1:28:47]} 9... Bd7 {[%clk 1:20:18]} 10. h3 {[%clk
1:28:21]} 10... a6 {[%clk 1:17:46]} 11. a4 {[%clk 1:22:00]} 11... Rc8 {[%clk
1:13:53]} 12. b3 {[%clk 1:18:52]} 12... Nxd4 {[%clk 1:05:20]} 13. Bxd4 {[%clk
1:18:54]} 13... Bc6 {[%clk 1:04:50]} 14. Bg4 {[%clk 1:18:05]} 14... Rb8 {[%clk
0:57:02]} 15. Rc1 {[%clk 1:06:11]} 15... h5 {[%clk 0:47:23]} 16. Be2 {[%clk
0:57:20]} 16... Bh6 {[%clk 0:44:58]} 17. Rb1 {[%clk 0:43:07]} 17... Nxe4 {[%clk
0:36:09]} 18. Bxh5 {[%clk 0:34:41]} 18... e5 {[%clk 0:24:58]} 19. Bf3 {[%clk
0:27:53]} 19... Nxc3 {[%clk 0:12:56]} 20. Bxc3 {[%clk 0:27:18]} 20... Rc8 {[%clk
0:12:29]} 21. Bd5 {[%clk 0:19:39]} 21... Qd7 {[%clk 0:11:01]} 22. Qd3 {[%clk
0:17:53]} 22... Bg7 {[%clk 0:10:40]} 23. Rfd1 {[%clk 0:16:56]} 23... Rfd8 {[%clk
0:09:31]} 24. Bb4 {[%clk 0:15:34]} 24... Bxd5 {[%clk 0:08:21]} 25. Qxd5 {[%clk
0:15:49]} 25... Bf8 {[%clk 0:07:38]} 26. c5 {[%clk 0:15:01]} 26... a5 {[%clk
0:05:31]} 27. Ba3 {[%clk 0:13:08]} 27... Rc6 {[%clk 0:03:49]} 28. Rd2 {[%clk
0:11:48]} 28... b6 {[%clk 0:03:51]} 29. cxb6 {[%clk 0:10:40]} 29... Rxb6 {[%clk
0:04:05]} 30. Qxa5 {[%clk 0:10:11]} 30... Qc6 {[%clk 0:02:25]} 31. Qd5 {[%clk
0:08:07]} 31... Qxd5 {[%clk 0:02:39]} 32. Rxd5 {[%clk 0:08:15]} 32... Rdb8
{[%clk 0:02:44]} 33. b4 {[%clk 0:08:18]} 33... f6 {[%clk 0:02:48]} 34. b5 {[%clk
0:07:46]} 34... Kf7 {[%clk 0:03:01]} 35. a5 {[%clk 0:07:27]} 35... Ke6 {[%clk
0:02:54]} 36. axb6 {[%clk 0:05:33]} 36... Kxd5 {[%clk 0:03:17]} 37. Rd1+ {[%clk
0:05:26]} 37... Ke6 {[%clk 0:03:41]} 38. Rb1 {[%clk 0:05:26]} 38... Rxb6 {[%clk
0:03:57]} 39. Bc1 {[%clk 0:05:37]} 39... d5 {[%clk 0:04:04]} 40. Bd2 {[%clk
0:05:55]} 40... Bc5 {[%clk 0:03:51]} 41. Ba5 {[%clk 0:05:47]} 41... Rb7 {[%clk
0:04:11]} 42. g4 {[%clk 0:04:30]} 42... g5 {[%clk 0:04:19]} 43. Kg2 {[%clk
0:04:34]} 43... d4 {[%clk 0:03:34]} 44. Kf3 {[%clk 0:04:38]} 44... Kd5 {[%clk
0:02:53]} 45. Ke2 {[%clk 0:04:04]} 45... e4 {[%clk 0:01:37]} 46. Bd8 {[%clk
0:02:43]} 46... Ke6 {[%clk 0:01:02]} 47. Ba5 {[%clk 0:02:55]} 47... Ke5 1/2-1/2

[Variant "Standard"]
[Site "Europe Echecs"]

[Event "Championnat du monde jeunes U12F"]
[Date "2024.11.25"]
[White "Hrckova, Anna"]
[Black "Prokofieva, Alexandra"]
[WhiteElo "1441"]
[BlackElo "1467"]
[Round "10.39"]
[Result "1-0"]
[TimeControl "5400+30"]

1. e4 {[%clk 1:30:58]} 1... e5 {[%clk 1:30:53]} 2. Nf3 {[%clk 1:31:24]} 2... Nc6
{[%clk 1:31:13]} 3. Nc3 {[%clk 1:31:47]} 3... d6 {[%clk 1:30:55]} 4. h3 {[%clk
1:30:10]} 4... b6 {[%clk 1:31:00]} 5. d4 {[%clk 1:30:11]} 5... exd4 {[%clk
1:29:22]} 6. Nxd4 {[%clk 1:30:33]} 6... Nxd4 {[%clk 1:29:15]} 7. Qxd4 {[%clk
1:30:39]} 7... c5 {[%clk 1:28:24]} 8. Qa4+ {[%clk 1:28:13]} 8... Bd7 {[%clk
1:28:12]} 9. Bb5 {[%clk 1:28:33]} 9... Nf6 {[%clk 1:28:26]} 10. Bg5 {[%clk
1:28:16]} 10... Bxb5 {[%clk 1:28:20]} 11. Qxb5+ {[%clk 1:28:30]} 11... Qd7
{[%clk 1:28:39]} 12. Qxd7+ {[%clk 1:28:37]} 12... Kxd7 {[%clk 1:28:30]} 13.
O-O-O {[%clk 1:28:29]} 13... h6 {[%clk 1:28:24]} 14. Bf4 {[%clk 1:28:45]} 14...
Rd8 {[%clk 1:27:32]} 15. Rhe1 {[%clk 1:27:41]} 15... Kc6 {[%clk 1:26:12]} 16. e5
{[%clk 1:26:05]} 16... Ne8 {[%clk 1:25:05]} 17. Bh2 {[%clk 1:20:09]} 17... h5
{[%clk 1:17:21]} 18. f4 {[%clk 1:19:28]} 18... Be7 {[%clk 1:16:43]} 19. g3
{[%clk 1:18:26]} 19... dxe5 {[%clk 1:16:25]} 20. Rxd8 {[%clk 1:18:04]} 20...
Bxd8 {[%clk 1:16:43]} 21. fxe5 {[%clk 1:14:01]} 21... Bg5+ {[%clk 1:16:28]} 22.
Kb1 {[%clk 1:13:55]} 22... a5 {[%clk 1:16:00]} 23. e6 {[%clk 1:13:56]} 23...
fxe6 {[%clk 1:15:48]} 24. Rxe6+ {[%clk 1:14:21]} 24... Kb7 {[%clk 1:15:44]} 25.
Ne4 {[%clk 1:03:29]} 25... Rf8 {[%clk 1:10:34]} 26. a3 {[%clk 1:01:35]} 26...
Rf1+ {[%clk 1:09:16]} 27. Ka2 {[%clk 1:01:51]} 27... Nc7 {[%clk 1:06:34]} 28.
Rg6 {[%clk 1:00:50]} 28... Bd8 {[%clk 1:04:45]} 29. Nd6+ {[%clk 1:00:12]} 29...
Ka6 {[%clk 1:04:33]} 30. Nc4 {[%clk 0:59:03]} 30... Rh1 {[%clk 0:59:59]} 31.
Rxb6+ {[%clk 0:56:59]} 31... Ka7 {[%clk 1:00:20]} 32. Rd6 {[%clk 0:56:47]} 32...
Rxh2 {[%clk 0:38:49]} 33. Rxd8 {[%clk 0:56:38]} 33... Rxh3 {[%clk 0:36:13]} 34.
Rd7 {[%clk 0:56:55]} 34... Kb7 {[%clk 0:35:53]} 35. Nxa5+ {[%clk 0:56:42]} 35...
Ka6 {[%clk 0:35:02]} 36. Rxc7 {[%clk 0:56:28]} 36... Kxa5 {[%clk 0:35:22]} 37.
Rxg7 {[%clk 0:56:51]} 37... Rh2 {[%clk 0:35:18]} 38. Kb3 {[%clk 0:56:35]} 38...
h4 {[%clk 0:35:03]} 39. gxh4 {[%clk 0:56:26]} 39... Rxh4 {[%clk 0:35:24]} 40.
Rg3 {[%clk 0:55:48]} 40... c4+ {[%clk 0:34:47]} 41. Kc3 {[%clk 0:55:15]} 41...
Ka4 {[%clk 0:34:52]} 42. Re3 {[%clk 0:54:08]} 42... Kb5 {[%clk 0:33:57]} 43.
Re5+ {[%clk 0:52:39]} 43... Ka4 {[%clk 0:34:08]} 44. Rd5 {[%clk 0:51:00]} 44...
Rh3+ {[%clk 0:31:35]} 45. Kxc4 {[%clk 0:51:17]} 45... Rh4+ {[%clk 0:31:42]} 46.
Rd4 {[%clk 0:51:43]} 46... Rh2 {[%clk 0:31:47]} 47. Kc5+ {[%clk 0:50:48]} 47...
Ka5 {[%clk 0:32:04]} 48. b4+ {[%clk 0:50:55]} 48... Ka4 {[%clk 0:32:22]} 49. b5+
{[%clk 0:51:09]} 49... Kxa3 {[%clk 0:32:44]} 50. c4 {[%clk 0:51:15]} 50... Rh5+
{[%clk 0:32:32]} 51. Rd5 {[%clk 0:51:33]} 51... Rh8 {[%clk 0:32:46]} 52. b6
{[%clk 0:51:55]} 52... Rc8+ {[%clk 0:33:07]} 53. Kb5 {[%clk 0:52:16]} 53... Rb8
{[%clk 0:33:13]} 54. c5 {[%clk 0:52:36]} 54... Ra8 {[%clk 0:33:24]} 55. b7
{[%clk 0:52:55]} 55... Ra4 {[%clk 0:33:45]} 56. Rd3+ {[%clk 0:53:10]} 56... Ka2
{[%clk 0:33:59]} 57. Kxa4 {[%clk 0:53:28]} 57... Kb2 {[%clk 0:34:09]} 58. b8=Q+
{[%clk 0:53:47]} 58... Kc2 {[%clk 0:34:24]} 59. Qb3+ {[%clk 0:54:09]} 59... Kc1
{[%clk 0:34:37]} 60. Qc3+ {[%clk 0:54:20]} 60... Kb1 {[%clk 0:34:44]} 61. Rd1+
{[%clk 0:54:36]} 61... Ka2 {[%clk 0:35:06]} 62. Ra1# {[%clk 0:54:58]} 1-0

[Variant "Standard"]
[Site "Europe Echecs"]